bitfinex-derivatives/quotes_BNBF0:USTF0_20230831
["timestamp","ask_amount","ask_price","bid_price","bid_amount"]
[1693492987541,0.07327891,223.06,222.68,0.1869498]
[1693492987843,0.07327891,223.06,222.69,0.1869498]
[1693492988141,0.07327891,223.06,222.7,0.1869498]
[1693492988342,0.07327891,223.06,222.71,0.1869498]
[1693492988542,0.07327891,223.07,222.69,0.1869498]
[1693492988745,0.07327891,223.07,222.7,0.1869498]
[1693492989043,0.07327891,223.07,222.71,0.1869498]
[1693492989244,0.07327891,223.07,222.69,0.26046461]
[1693492989444,0.07327891,223.07,222.7,0.1869498]
[1693492992838,0.07327891,223.07,222.7,0.26046461]
[1693492993043,0.07327891,223.07,222.71,0.1869498]
[1693492994846,0.07327891,223.06,222.71,0.1869498]
[1693492995647,0.07327891,223.06,222.71,0.26046461]
[1693492995842,0.07327891,223.06,222.72,0.1869498]
[1693492996942,0.07327891,223.05,222.72,0.1869498]
[1693492997851,0.07327891,223.06,222.72,0.26046461]
[1693492998150,0.07327891,223.06,222.73,0.1869498]
[1693492998851,0.07327891,223.06,222.73,0.26046461]
[1693492999052,0.07327891,223.05,222.74,0.1869498]
[1693492999253,0.07327891,223.1,222.78,0.07351481]
[1693492999450,0.07327891,223.1,222.79,0.1869498]
[1693492999750,0.07327891,223.11,222.79,0.1869498]
[1693493000943,0.07327891,223.1,222.79,0.26046461]
[1693493001145,0.07327891,223.1,222.8,0.1869498]
[1693493001749,0.07327891,223.11,222.8,0.1869498]
[1693493001950,0.07327891,223.11,222.78,0.07351481]
[1693493001951,0.07327891,223.11,222.79,0.26046461]
[1693493002146,0.07327891,223.11,222.8,0.1869498]
[1693493004957,0.07327891,223.11,222.81,0.1869498]
[1693493005152,0.07327891,223.11,222.82,0.1869498]
[1693493005356,0.07327891,223.12,222.83,0.1869498]
[1693493005557,0.07327891,223.12,222.84,0.1869498]
[1693493005758,0.07327891,223.12,222.85,0.1869498]
[1693493005953,0.07327891,223.12,222.79,0.1869498]
[1693493006157,0.07327891,223.12,222.8,0.1867353]
[1693493006359,0.07327891,223.12,222.78,0.1867353]
[1693493006558,0.07327891,223.12,222.79,0.1867353]
[1693493006752,0.07327891,223.12,222.77,0.07351481]
[1693493006753,0.07327891,223.12,222.8,0.1867353]
[1693493006956,0.07327891,223.12,222.81,0.1867353]
[1693493007157,0.07327891,223.11,222.82,0.1867353]
[1693493007459,0.07327891,223.11,222.83,0.1867353]
[1693493007661,0.07327891,223.12,222.78,0.1867353]
[1693493007859,0.07327891,223.12,222.79,0.1867353]
[1693493008161,0.07327891,223.12,222.8,0.1867353]
[1693493008357,0.07327891,223.12,222.81,0.1867353]
[1693493008557,0.07327891,223.12,222.77,0.1867353]
[1693493008860,0.07327891,223.12,222.78,0.1867353]
[1693493009060,0.07327891,223.12,222.79,0.1867353]
[1693493009261,0.07327891,223.12,222.77,0.1867353]
[1693493009458,0.07327891,223.12,222.78,0.1867353]
[1693493009658,0.07327891,223.12,222.79,0.1867353]
[1693493009860,0.07327891,223.13,222.8,0.1867353]
[1693493010161,0.07327891,223.13,222.81,0.1867353]
[1693493010363,0.07327891,223.13,222.82,0.1867353]
[1693493010555,0.07327891,223.13,222.83,0.1867353]
[1693493010754,0.07327891,223.13,222.84,0.1867353]
[1693493010962,0.07327891,223.13,222.77,0.1867353]
[1693493011161,0.07327891,223.13,222.78,0.1867353]
[1693493011362,0.07327891,223.13,222.79,0.1867353]
[1693493011562,0.07327891,223.13,222.8,0.1867353]
[1693493011760,0.07327891,223.13,222.81,0.1867353]
[1693493011961,0.07327891,223.13,222.82,0.1867353]
[1693493012161,0.07327891,223.13,222.83,0.1867353]
[1693493012461,0.07327891,223.13,222.84,0.1867353]
[1693493012662,0.07327891,223.13,222.85,0.1867353]
[1693493012863,0.07327891,223.13,222.75,0.07351481]
[1693493013065,0.07327891,223.13,222.76,0.18674432]
[1693493017967,0.07327891,223.13,222.77,0.18674432]
[1693493018169,0.07327891,223.13,222.78,0.18674432]
[1693493018467,0.07327891,223.13,222.79,0.18674432]
[1693493018667,0.07327891,223.13,222.76,0.18674432]
[1693493018963,0.07327891,223.13,222.77,0.18674432]
[1693493019168,0.07327891,223.13,222.78,0.18674432]
[1693493019367,0.07327891,223.13,222.79,0.18674432]
[1693493019567,0.07327891,223.13,222.8,0.18674432]
[1693493019769,0.07327891,223.12,222.81,0.18674432]
[1693493019965,0.07327891,223.12,222.82,0.18674432]
[1693493020169,0.07327891,223.12,222.75,0.18674432]
[1693493020371,0.07327891,223.12,222.76,0.18674432]
[1693493020570,0.07327891,223.07,222.75,0.18674432]
[1693493020772,0.07327891,223.07,222.76,0.18674432]
[1693493020971,0.07327891,223.07,222.77,0.18674432]
[1693493021271,0.07327891,223.07,222.7,0.07351481]
[1693493021272,0.07327891,223.07,222.78,0.18674432]
[1693493021472,0.07327891,223.07,222.79,0.18674432]
[1693493021673,0.07327891,223.07,222.71,0.18674432]
[1693493021972,0.07327891,223.07,222.72,0.18695035]
[1693493022169,0.07327891,223.07,222.73,0.18695035]
[1693493022370,0.07327891,223.07,222.71,0.18695035]
[1693493022570,0.07327891,223.07,222.72,0.18695035]
[1693493022771,0.07327891,223.06,222.73,0.18695035]
[1693493022967,0.14655782,223.09,222.71,0.18695035]
[1693493022968,0.07327891,223.07,222.71,0.18695035]
[1693493023167,0.07327891,223.07,222.72,0.18695035]
[1693493025673,0.07327891,223.07,222.72,0.26046516]
[1693493025969,0.07327891,223.07,222.73,0.18695035]
[1693493026173,0.07327891,223.07,222.72,0.26046516]
[1693493026473,0.07327891,223.07,222.73,0.18695035]
[1693493028776,0.07327891,223.07,222.73,0.26046516]
[1693493028974,0.07327891,223.07,222.74,0.18695035]
[1693493032783,0.07327891,223.06,222.74,0.18695035]
[1693493044683,0.07327891,223.06,222.74,0.26046516]
[1693493044984,0.07327891,223.06,222.75,0.18695035]
[1693493045784,0.07327891,223.05,222.75,0.18695035]
[1693493048886,0.07327891,223.05,222.75,0.26046516]
[1693493049081,0.07327891,223.05,222.76,0.18695035]
[1693493049887,0.07327891,223.04,222.76,0.18695035]
[1693493051690,0.07327891,223.03,222.76,0.26046516]
[1693493051887,0.07327891,223.03,222.77,0.18695035]
[1693493052788,0.07327891,223.03,222.77,0.26046516]
[1693493052982,0.07327891,223.03,222.78,0.18695035]
[1693493053681,0.07327891,223.02,222.78,0.26046516]
[1693493053886,0.07327891,223.02,222.79,0.18695035]
[1693493054788,0.07327891,223.01,222.79,0.26046516]
[1693493055088,0.07327891,223.01,222.8,0.18695035]
[1693493055690,0.07327891,223.0,222.8,0.18695035]
[1693493056686,0.07327891,222.99,222.78,0.07351481]
[1693493056891,0.07327891,222.99,222.79,0.18696325]
[1693493057791,0.07327891,222.99,222.77,0.07351481]
[1693493057992,0.07327891,222.99,222.78,0.18695748]
[1693493058987,0.07327891,223.0,222.78,0.18695748]
[1693493062097,0.07327891,223.0,222.78,0.26047229]
[1693493062297,0.07327891,223.0,222.79,0.18695748]
[1693493064799,0.07327891,223.01,222.79,0.18695748]
[1693493067702,0.07327891,223.01,222.79,0.26047229]
[1693493067902,0.07327891,223.01,222.8,0.18695748]
[1693493071408,0.07327891,223.06,222.84,0.07351481]
[1693493071608,0.07327891,223.07,222.85,0.18695748]
[1693493072007,0.07327891,223.08,222.85,0.18695748]
[1693493072207,0.07327891,223.08,222.86,0.18695748]
[1693493072402,0.07327891,223.08,222.83,0.07351481]
[1693493072607,0.07327891,223.08,222.84,0.18669741]
[1693493072802,0.07327891,223.1,222.84,0.18669741]
[1693493073008,0.07327891,223.1,222.83,0.18669741]
[1693493073207,0.07327891,223.1,222.84,0.18669741]
[1693493073409,0.07327891,223.1,222.83,0.18669741]
[1693493073607,0.07327891,223.1,222.84,0.18669741]
[1693493073807,0.07327891,223.1,222.85,0.18669741]
[1693493074004,0.07327891,223.1,222.83,0.18669741]
[1693493074209,0.07327891,223.1,222.84,0.18669741]
[1693493074412,0.07327891,223.11,222.82,0.18669741]
[1693493074610,0.07327891,223.11,222.83,0.18669741]
[1693493074812,0.07327891,223.11,222.82,0.18669741]
[1693493075014,0.07327891,223.12,222.83,0.18669741]
[1693493075206,0.07327891,223.11,222.84,0.18669741]
[1693493075410,0.07327891,223.11,222.82,0.18669741]
[1693493075706,0.07327891,223.11,222.83,0.18669741]
[1693493075912,0.07327891,223.11,222.84,0.18669741]
[1693493076213,2.44263048,223.25,222.85,0.18669741]
[1693493076214,0.07327891,223.12,222.85,0.18669741]
[1693493076513,0.07327891,223.12,222.86,0.18669741]
[1693493076812,0.07327891,223.12,222.87,0.18669741]
[1693493077014,0.07327891,223.12,222.8,0.07351481]
[1693493077214,0.07327891,223.12,222.81,0.18669587]
[1693493077914,0.07327891,223.12,222.8,0.18669587]
[1693493078209,0.07327891,223.12,222.81,0.18669587]
[1693493078415,0.07327891,223.12,222.8,0.18669587]
[1693493078613,0.07327891,223.12,222.81,0.18669587]
[1693493078808,0.07327891,223.12,222.82,0.18669587]
[1693493079011,0.07327891,223.13,222.8,0.18669587]
[1693493079211,0.07327891,223.13,222.81,0.18669587]
[1693493079414,0.07327891,223.13,222.82,0.18669587]
[1693493079614,0.07327891,223.13,222.8,0.18669587]
[1693493079810,0.07327891,223.13,222.79,0.07351481]
[1693493079811,0.07327891,223.13,222.81,0.18669587]
[1693493080014,0.07327891,223.13,222.82,0.18669587]
[1693493080214,0.07327891,223.13,222.83,0.18669587]
[1693493080514,0.07327891,223.13,222.84,0.18669587]
[1693493080715,0.07327891,223.13,222.85,0.18669587]
[1693493080916,0.07327891,223.13,222.79,0.18669587]
[1693493081215,0.07327891,223.13,222.8,0.18669587]
[1693493081412,0.07327891,223.13,222.81,0.18669587]
[1693493081614,0.07327891,223.13,222.82,0.18669587]
[1693493081809,0.07327891,223.13,222.78,0.07351481]
[1693493081810,0.07327891,223.13,222.79,0.18669587]
[1693493082015,0.07327891,223.13,222.8,0.18669587]
[1693493082314,0.07327891,223.13,222.81,0.18669587]
[1693493082515,0.07327891,223.13,222.79,0.18669587]
[1693493082715,0.07327891,223.13,222.8,0.18669587]
[1693493083016,0.07327891,223.14,222.81,0.18669587]
[1693493083215,0.07327891,223.14,222.82,0.18669587]
[1693493083411,0.07327891,223.14,222.83,0.18669587]
[1693493083714,0.07327891,223.14,222.78,0.07351481]
[1693493083715,0.07327891,223.14,222.84,0.18669587]
[1693493083915,0.07327891,223.14,222.79,0.18669587]
[1693493084108,0.07327891,223.14,222.77,0.07351481]
[1693493084109,0.07327891,223.14,222.8,0.18669587]
[1693493084313,0.07327891,223.14,222.78,0.18669587]
[1693493084513,0.07327891,223.14,222.79,0.18669587]
[1693493084714,0.07327891,223.14,222.78,0.18669587]
[1693493085614,0.07327891,223.13,222.78,0.18669587]
[1693493086213,0.07327891,223.13,222.76,0.07351481]
[1693493086214,0.07327891,223.13,222.77,0.18669587]
[1693493086409,0.07327891,223.13,222.78,0.18669587]
[1693493086609,0.07327891,223.12,222.79,0.18669587]
[1693493086815,0.07327891,223.12,222.8,0.18669587]
[1693493087016,0.07327891,223.12,222.77,0.18669587]
[1693493087314,0.07327891,223.12,222.78,0.18669587]
[1693493087511,0.07327891,223.12,222.79,0.18669587]
[1693493087715,0.07327891,223.12,222.77,0.18669587]
[1693493087918,0.07327891,223.12,222.78,0.18669587]
[1693493088216,0.07327891,223.12,222.79,0.18669587]
[1693493088411,0.07327891,223.12,222.8,0.18669587]
[1693493088614,0.07327891,223.12,222.81,0.18669587]
[1693493088816,0.07327891,223.12,222.82,0.18669587]
[1693493089017,0.07327891,223.12,222.77,0.18669587]
[1693493090816,2.44263048,223.26,222.77,0.18669587]
[1693493090817,0.07327891,223.11,222.77,0.18669587]
[1693493091013,0.07327891,223.11,222.78,0.18669587]
[1693493091216,0.07327891,223.11,222.76,0.18669587]
[1693493091411,0.07327891,223.11,222.77,0.18669587]
[1693493091716,0.07327891,223.11,222.78,0.18669587]
[1693493091917,0.07327891,223.11,222.76,0.18669587]
[1693493092119,0.07327891,223.11,222.77,0.18669587]
[1693493092319,0.07327891,223.11,222.76,0.18669587]
[1693493092519,0.07327891,223.11,222.77,0.18669587]
[1693493092718,0.07327891,223.11,222.76,0.18669587]
[1693493092919,0.07327891,223.06,222.77,0.18669587]
[1693493093119,0.07327891,223.06,222.78,0.18669587]
[1693493093320,0.07327891,223.06,222.79,0.18669587]
[1693493093620,0.07327891,223.06,222.7,0.07351481]
[1693493093818,0.07327891,223.06,222.71,0.18694583]
[1693493104729,0.07327891,223.06,222.72,0.18694583]
[1693493104928,0.07327891,223.06,222.73,0.18694583]
[1693493105129,0.07327891,223.07,222.7,0.18694583]
[1693493105429,0.07327891,223.07,222.71,0.18694583]
[1693493105631,0.07327891,223.07,222.7,0.18694583]
[1693493105831,0.07327891,223.07,222.71,0.18694583]
[1693493106130,0.07327891,223.07,222.72,0.18694583]
[1693493106329,0.07327891,223.07,222.73,0.18694583]
[1693493106529,0.07327891,223.07,222.7,0.18694583]
[1693493106725,0.07327891,223.06,222.71,0.18694583]
[1693493106930,0.07327891,223.07,222.72,0.18694583]
[1693493107131,0.07327891,223.07,222.7,0.18694583]
[1693493107432,0.07327891,223.07,222.71,0.18694583]
[1693493107629,0.07327891,223.07,222.72,0.18694583]
[1693493107829,0.07327891,223.07,222.69,0.07351481]
[1693493107830,0.07327891,223.07,222.7,0.18694583]
[1693493108032,0.07327891,223.07,222.71,0.18694583]
[1693493108331,0.07327891,223.07,222.72,0.18694583]
[1693493108533,0.07327891,223.07,222.7,0.18694583]
[1693493108831,0.07327891,223.07,222.71,0.18694583]
[1693493109028,0.07327891,223.07,222.72,0.18694583]
[1693493109227,0.07327891,223.07,222.73,0.18694583]
[1693493109427,0.07327891,223.07,222.7,0.18694583]
[1693493109628,0.07327891,223.07,222.71,0.18694583]
[1693493109825,0.07327891,223.07,222.72,0.18694583]
[1693493110024,0.07327891,223.07,222.7,0.18694583]
[1693493110226,0.07327891,223.07,222.71,0.18694583]
[1693493110430,0.07327891,223.07,222.7,0.18694583]
[1693493110632,0.07327891,223.07,222.71,0.18694583]
[1693493110829,0.07327891,223.07,222.72,0.18694583]
[1693493111126,0.07327891,223.07,222.73,0.18694583]
[1693493111428,0.07327891,223.07,222.74,0.18694583]
[1693493111626,0.07327891,223.07,222.75,0.18694583]
[1693493111931,0.07327891,223.07,222.76,0.18694583]
[1693493112132,0.07327891,223.07,222.77,0.18694583]
[1693493112325,0.07327891,223.07,222.7,0.18694583]
[1693493112529,0.07327891,223.06,222.71,0.18694583]
[1693493112725,0.07327891,223.06,222.69,0.18694583]
[1693493112931,0.07327891,223.06,222.7,0.18694583]
[1693493113126,0.07327891,223.06,222.71,0.18694583]
[1693493113330,0.07327891,223.05,222.69,0.18694583]
[1693493113531,0.07327891,223.05,222.7,0.18694583]
[1693493113731,0.07327891,223.05,222.71,0.18694583]
[1693493113933,0.07327891,223.05,222.69,0.18694583]
[1693493114236,0.07327891,223.05,222.7,0.18694583]
[1693493114431,0.07327891,223.05,222.69,0.18694583]
[1693493114628,0.07327891,223.05,222.7,0.18694583]
[1693493114839,0.07327891,223.05,222.71,0.18694583]
[1693493115032,0.07327891,223.05,222.69,0.18694583]
[1693493115231,0.07327891,223.05,222.7,0.18694583]
[1693493115432,0.07327891,223.05,222.71,0.18694583]
[1693493115635,0.07327891,223.05,222.72,0.18694583]
[1693493115831,0.07327891,223.05,222.73,0.18694583]
[1693493116035,0.07327891,223.05,222.74,0.18694583]
[1693493116235,0.07327891,223.05,222.75,0.18694583]
[1693493116436,0.07327891,223.05,222.76,0.18694583]
[1693493116737,0.07327891,223.05,222.77,0.18694583]
[1693493116936,0.07327891,223.04,222.68,0.07351481]
[1693493117136,0.07327891,223.04,222.69,0.18699617]
[1693493119932,0.07327891,223.03,222.69,0.26051098]
[1693493120131,0.07327891,223.03,222.7,0.18699617]
[1693493121136,0.07327891,223.03,222.7,0.26051098]
[1693493121335,0.07327891,223.03,222.71,0.18699617]
[1693493122036,0.07327891,223.02,222.71,0.18699617]
[1693493122937,0.07327891,223.02,222.71,0.26051098]
[1693493123137,0.07327891,223.02,222.72,0.18699617]
[1693493124140,0.07327891,223.01,222.73,0.18699617]
[1693493124333,0.07327891,223.01,222.72,0.18699617]
[1693493124538,0.07327891,223.01,222.73,0.18699617]
[1693493124739,0.07327891,223.01,222.72,0.18699617]
[1693493124938,0.07327891,223.0,222.73,0.18699617]
[1693493125934,0.07327891,222.99,222.73,0.26051098]
[1693493126139,0.07327891,222.99,222.74,0.18699617]
[1693493127035,0.07327891,222.98,222.74,0.26051098]
[1693493127235,0.07327891,222.98,222.75,0.18699617]
[1693493130336,0.07327891,222.97,222.75,0.18699617]
[1693493130538,0.07327891,222.97,222.76,0.18699617]
[1693493130739,0.07327891,222.97,222.74,0.18699617]
[1693493130936,0.07327891,222.97,222.75,0.18701357]
[1693493131141,0.07327891,222.97,222.76,0.18701357]
[1693493131341,0.07327891,222.97,222.73,0.07351481]
[1693493131540,0.07327891,222.97,222.74,0.18701081]
[1693493136842,0.07327891,222.97,222.75,0.18701081]
[1693493137146,0.07327891,222.97,222.72,0.07351481]
[1693493137343,0.07327891,222.97,222.73,0.18702174]
[1693493138049,0.07327891,222.97,222.73,0.26053655]
[1693493138347,0.07327891,222.97,222.74,0.18702174]
[1693493141451,0.07327891,222.98,222.74,0.18702174]
[1693493142945,0.07327891,222.98,222.74,0.26053655]
[1693493143150,0.07327891,222.98,222.75,0.18702174]
[1693493145753,0.07327891,222.97,222.75,0.18702174]
[1693493146954,0.07327891,222.97,222.75,0.26053655]
[1693493147148,0.07327891,222.97,222.76,0.18702174]
[1693493149860,0.07327891,222.98,222.76,0.18702174]
[1693493151858,0.07327891,222.98,222.76,0.26053655]
[1693493152057,0.07327891,222.98,222.77,0.18702174]
[1693493160264,0.07327891,222.99,222.77,0.18702174]
[1693493160569,0.07327891,222.99,222.77,0.26053655]
[1693493160764,0.07327891,222.99,222.78,0.18702174]
[1693493161769,0.07327891,222.99,222.77,0.18702174]
[1693493162067,0.07327891,222.99,222.76,0.07351481]
[1693493162068,0.07327891,222.99,222.78,0.18697139]
[1693493162270,0.07327891,222.99,222.76,0.07351481]
[1693493162470,0.07327891,222.99,222.77,0.18697097]
[1693493169471,0.07327891,223.0,222.77,0.26048578]
[1693493169672,0.07327891,223.01,222.77,0.26048578]
[1693493169871,0.07327891,223.02,222.78,0.18697097]
[1693493170072,0.07327891,223.02,222.78,0.26048578]
[1693493170273,0.07327891,223.02,222.79,0.18697097]
[1693493170467,0.07327891,223.02,222.78,0.18697097]
[1693493170669,0.07327891,223.02,222.79,0.18697097]
[1693493170873,0.07327891,223.02,222.8,0.18697097]
[1693493171075,0.07327891,223.02,222.78,0.07351481]
[1693493171375,0.07327891,223.02,222.79,0.18693857]
[1693493172075,0.07327891,223.02,222.8,0.18693857]
[1693493172271,0.07327891,223.02,222.77,0.07351481]
[1693493172476,0.07327891,223.02,222.78,0.18694217]
[1693493173672,0.07327891,223.03,222.78,0.18694217]
[1693493177479,0.07327891,223.08,222.82,0.07351481]
[1693493177675,0.07327891,223.08,222.83,0.18694217]
[1693493177878,0.07327891,223.09,222.83,0.18694217]
[1693493178074,0.07327891,223.09,222.84,0.18694217]
[1693493178277,0.07327891,223.09,222.85,0.18694217]
[1693493178478,0.07327891,223.09,222.86,0.18694217]
[1693493178678,0.07327891,223.1,222.8,0.07351481]
[1693493178878,0.07327891,223.1,222.81,0.26025456]
[1693493179074,0.07327891,223.1,222.82,0.18673975]
[1693493179581,0.07327891,223.11,222.82,0.18673975]
[1693493179779,0.07327891,223.11,222.79,0.07351481]
[1693493179780,0.07327891,223.11,222.83,0.18673975]
[1693493179981,0.07327891,223.11,222.84,0.18673975]
[1693493180180,0.07327891,223.11,222.85,0.18673975]
[1693493180379,0.07327891,223.11,222.86,0.18673975]
[1693493180681,0.07327891,223.11,222.79,0.07351481]
[1693493180878,0.07327891,223.12,222.8,0.1867318]
[1693493181083,0.07327891,223.12,222.79,0.1867318]
[1693493181282,0.07327891,223.12,222.8,0.1867318]
[1693493181478,0.07327891,223.12,222.81,0.1867318]
[1693493181678,0.07327891,223.12,222.79,0.1867318]
[1693493181980,0.07327891,223.12,222.8,0.1867318]
[1693493182285,0.07327891,223.12,222.78,0.07351481]
[1693493182286,0.07327891,223.12,222.81,0.1867318]
[1693493182582,0.07327891,223.13,222.82,0.1867318]
[1693493182784,0.07327891,223.13,222.78,0.1867318]
[1693493182983,0.07327891,223.13,222.77,0.07351481]
[1693493182984,0.07327891,223.13,222.79,0.1867318]
[1693493183184,0.07327891,223.13,222.78,0.1867318]
[1693493183484,0.07327891,223.13,222.79,0.1867318]
[1693493183686,0.07327891,223.13,222.8,0.1867318]
[1693493183883,0.07327891,223.13,222.77,0.1867318]
[1693493184084,0.07327891,223.13,222.78,0.1867318]
[1693493184280,0.07327891,223.13,222.79,0.1867318]
[1693493184479,0.07327891,223.13,222.77,0.1867318]
[1693493184686,0.07327891,223.13,222.78,0.1867318]
[1693493184883,0.07327891,223.14,222.77,0.1867318]
[1693493185084,0.07327891,223.13,222.78,0.1867318]
[1693493185386,0.07327891,223.14,222.79,0.1867318]
[1693493185588,0.07327891,223.14,222.8,0.1867318]
[1693493185787,0.07327891,223.14,222.77,0.1867318]
[1693493185987,0.07327891,223.14,222.78,0.1867318]
[1693493186287,0.07327891,223.14,222.79,0.1867318]
[1693493186483,0.07327891,223.14,222.8,0.1867318]
[1693493186682,0.07327891,223.14,222.81,0.1867318]
[1693493186888,0.07327891,223.14,222.77,0.1867318]
[1693493187089,0.07327891,223.14,222.78,0.1867318]
[1693493187289,0.07327891,223.14,222.79,0.1867318]
[1693493187490,0.07327891,223.14,222.8,0.1867318]
[1693493187684,0.07327891,223.14,222.77,0.1867318]
[1693493187888,0.07327891,223.14,222.78,0.1867318]
[1693493188088,0.07327891,223.14,222.76,0.1867318]
[1693493188385,0.07327891,223.14,222.77,0.1867318]
[1693493188584,0.07327891,223.14,222.78,0.1867318]
[1693493188890,0.07327891,223.14,222.79,0.1867318]
[1693493189091,0.07327891,223.14,222.8,0.1867318]
[1693493189290,0.07327891,223.14,222.81,0.1867318]
[1693493189591,0.07327891,223.14,222.82,0.1867318]
[1693493189785,0.07327891,223.14,222.76,0.1867318]
[1693493189987,0.07327891,223.14,222.77,0.1867318]
[1693493190185,0.07327891,223.14,222.76,0.1867318]
[1693493190393,0.07327891,223.14,222.77,0.1867318]
[1693493190690,0.07327891,223.14,222.78,0.1867318]
[1693493190890,0.07327891,223.14,222.79,0.1867318]
[1693493191086,0.07327891,223.14,222.76,0.1867318]
[1693493191291,0.07327891,223.14,222.77,0.1867318]
[1693493191490,0.07327891,223.14,222.78,0.1867318]
[1693493191791,0.07327891,223.14,222.79,0.1867318]
[1693493191993,0.07327891,223.13,222.8,0.1867318]
[1693493192291,0.07327891,223.13,222.81,0.1867318]
[1693493192489,0.07327891,223.13,222.82,0.1867318]
[1693493192686,0.07327891,223.13,222.75,0.1867318]
[1693493194086,0.07327891,223.12,222.75,0.1867318]
[1693493194590,0.07327891,223.12,222.75,0.26024661]
[1693493194791,0.07327891,223.12,222.76,0.1867318]
[1693493196690,0.07327891,223.13,222.76,0.26024661]
[1693493196891,0.07327891,223.13,222.77,0.1867318]
[1693493197892,0.07327891,223.12,222.77,0.1867318]
[1693493198688,0.07327891,223.12,222.77,0.26024661]
[1693493198993,0.07327891,223.12,222.78,0.1867318]
[1693493199694,0.07327891,223.12,222.79,0.1867318]
[1693493199891,0.07327891,223.12,222.8,0.1867318]
[1693493200092,0.07327891,223.12,222.81,0.1867318]
[1693493200293,0.07327891,223.12,222.82,0.1867318]
[1693493200488,0.07327891,223.12,222.83,0.1867318]
[1693493200690,0.07327891,223.12,222.84,0.1867318]
[1693493200889,0.07327891,223.12,222.85,0.1867318]
[1693493201089,0.07327891,223.12,222.77,0.07351481]
[1693493201292,0.07327891,223.12,222.78,0.18673189]
[1693493201692,0.07327891,223.11,222.78,0.18673189]
[1693493202896,0.07327891,223.11,222.78,0.2602467]
[1693493203095,0.07327891,223.11,222.79,0.18673189]
[1693493203698,0.07327891,223.1,222.79,0.18673189]
[1693493204597,0.07327891,223.1,222.79,0.2602467]
[1693493204798,0.07327891,223.1,222.8,0.18673189]
[1693493204998,0.07327891,223.09,222.8,0.18673189]
[1693493206699,0.07327891,223.09,222.8,0.2602467]
[1693493206900,0.07327891,223.09,222.81,0.18673189]
[1693493207699,0.07327891,223.08,222.81,0.18673189]
[1693493208695,0.07327891,223.08,222.81,0.2602467]
[1693493208895,0.07327891,223.08,222.82,0.18673189]
[1693493210596,0.07327891,223.07,222.82,0.2602467]
[1693493210800,0.07327891,223.07,222.83,0.18673189]
[1693493211602,0.07327891,223.05,222.84,0.07351481]
[1693493211803,0.07327891,223.05,222.85,0.18673189]
[1693493214304,0.07332223,223.05,222.85,0.18673189]
[1693493219810,0.07332223,223.06,222.85,0.26027259]
[1693493220113,0.07332223,223.06,222.86,0.18673189]
[1693493222310,0.07332223,223.07,222.86,0.18673189]
[1693493222713,0.07332223,223.06,222.86,0.18673189]
[1693493223315,0.07332223,223.07,222.86,0.18673189]
[1693493224118,0.07332223,223.06,222.86,0.18673189]
[1693493224316,0.07332223,223.07,222.86,0.18673189]
[1693493230723,0.07332223,223.07,222.86,0.26027259]
[1693493230921,0.07332223,223.07,222.87,0.18673189]
[1693493231321,0.07332223,223.07,222.86,0.18673189]
[1693493231517,0.07332223,223.07,222.87,0.18670911]
[1693493231722,0.07332223,223.07,222.86,0.0735407]
[1693493231921,0.07332223,223.07,222.87,0.18670709]
[1693493232225,0.07332223,223.07,222.85,0.0735407]
[1693493232424,0.07332223,223.07,222.86,0.18670791]
[1693493233418,0.07332223,223.08,222.86,0.26024861]
[1693493233622,0.07332223,223.08,222.87,0.18670791]
[1693493233825,0.07332223,223.08,222.87,0.26024861]
[1693493234124,0.07332223,223.08,222.88,0.18670791]
[1693493234923,0.07332223,223.08,222.87,0.18670791]
[1693493235120,0.07332223,223.08,222.88,0.18670791]
[1693493235327,0.07332223,223.09,222.89,0.18670791]
[1693493235525,0.07332223,223.09,222.86,0.0735407]
[1693493235728,0.07332223,223.09,222.87,0.18667646]
[1693493240727,0.07332223,223.1,222.87,0.18667646]
[1693493247631,0.06943903,223.1,222.87,0.18667646]
[1693493248023,0.14664446,223.14,222.87,0.26021716]
[1693493248223,0.14664446,223.14,222.88,0.18667646]
[1693493248427,0.14664446,223.19,222.91,0.0735407]
[1693493248626,0.14664446,223.19,222.92,0.26021716]
[1693493248928,0.14664446,223.19,222.93,0.18667646]
[1693493249330,0.14664446,223.2,222.93,0.18667646]
[1693493249527,0.14664446,223.2,222.91,0.18667646]
[1693493249831,0.14664446,223.2,222.92,0.18667646]
[1693493250031,0.14664446,223.2,222.91,0.18667646]
[1693493250331,0.14664446,223.21,222.92,0.18667646]
[1693493250525,0.14664446,223.21,222.9,0.18667646]
[1693493250727,0.14664446,223.21,222.91,0.18667646]
[1693493250931,0.14664446,223.21,222.92,0.18667646]
[1693493251131,0.14664446,223.21,222.93,0.18667646]
[1693493251331,0.14664446,223.22,222.94,0.18667646]
[1693493251532,0.14664446,223.22,222.89,0.18667646]
[1693493251832,0.14664446,223.22,222.9,0.18667646]
[1693493252031,0.14664446,223.22,222.89,0.18667646]
[1693493252232,0.14664446,223.22,222.9,0.18667646]
[1693493252533,0.14664446,223.22,222.91,0.18667646]
[1693493252732,0.14664446,223.22,222.92,0.18667646]
[1693493252932,0.14664446,223.22,222.93,0.18667646]
[1693493253128,0.14664446,223.22,222.94,0.18667646]
[1693493253331,0.14664446,223.22,222.95,0.18667646]
[1693493253633,0.14664446,223.23,222.87,0.0735407]
[1693493253832,0.14664446,223.23,222.88,0.18458809]
[1693493254734,0.14664446,223.23,222.89,0.18458809]